fUSD/lending_fUSD_20260307
["ID","MTS","AMOUNT","RATE_DAILY","PERIOD"]
[407881035,1772879440198,-1558.81911971,0.00019626,2]
[407881036,1772879440209,-88020.51562171,0.00019626,2]
[407881040,1772879442482,-150.0,0.00019626,2]
[407881041,1772879442492,-22547.82092667,0.00019626,2]
[407881042,1772879442501,-1020.82498247,0.00019657,2]
[407881043,1772879442512,-166.67,0.0001966,2]
[407881045,1772879442528,-501.15121057,0.00019673,2]
[407881046,1772879442540,-421.0,0.00019699,2]
[407881047,1772879442550,-500.0,0.00019699,2]
[407881048,1772879442562,-236.22884881,0.00019699,2]
[407881049,1772879442574,-150.0,0.00019699,2]
[407881050,1772879442587,-500.0,0.00019699,2]
[407881051,1772879442597,-150.0,0.00019699,2]
[407881052,1772879442609,-150.0,0.00019699,2]
[407881053,1772879442621,-500.0,0.00019699,2]
[407881054,1772879442633,-500.0,0.00019699,2]
[407881055,1772879442646,-150.0,0.00019699,2]
[407881056,1772879442657,-889.0,0.00019699,2]
[407881057,1772879442666,-150.0,0.00019699,2]
[407881058,1772879442676,-500.0,0.00019699,2]
[407881059,1772879442686,-500.0,0.00019699,2]
[407881060,1772879442695,-150.0,0.00019699,2]
[407881061,1772879442704,-150.0,0.00019699,2]
[407881062,1772879442714,-250.0,0.00019699,2]
[407881063,1772879442728,-150.0,0.00019699,2]
[407881064,1772879442737,-250.0,0.00019699,2]
[407881065,1772879442747,-825.0,0.00019699,2]
[407881066,1772879442756,-1020.82498247,0.00019706,2]
[407881067,1772879442766,-500.0,0.00019713,2]
[407881068,1772879442775,-421.0,0.00019754,2]
[407881069,1772879442785,-500.0,0.00019754,2]
[407881070,1772879442794,-500.0,0.00019754,2]
[407881071,1772879442804,-150.0,0.00019754,2]
[407881072,1772879442813,-500.0,0.00019754,2]
[407881073,1772879442822,-500.0,0.00019754,2]
[407881074,1772879442832,-889.0,0.00019754,2]
[407881075,1772879442841,-500.0,0.00019754,2]
[407881076,1772879442851,-500.0,0.00019754,2]
[407881077,1772879442860,-825.0,0.00019754,2]
[407881078,1772879442869,-1020.82498247,0.00019754,2]
[407881079,1772879442879,-500.0,0.00019799,2]
[407881080,1772879442890,-38925.51510432,0.000198,5]
[407881087,1772879445584,-313.62707554,0.00019633,2]
[407881088,1772879445594,-35414.24087299,0.000198,5]
[407881089,1772879445603,-1020.82498247,0.00019803,2]
[407881090,1772879445614,-421.0,0.00019809,2]
[407881091,1772879445623,-500.0,0.00019809,2]
[407881092,1772879445633,-500.0,0.00019809,2]
[407881093,1772879445644,-200.0,0.00019809,2]
[407881094,1772879445653,-542.0,0.00019809,2]
[407881095,1772879445663,-500.0,0.00019809,2]
[407881096,1772879445674,-889.0,0.00019809,2]
[407881097,1772879445684,-500.0,0.00019809,2]
[407881098,1772879445694,-500.0,0.00019809,2]
[407881100,1772879445704,-825.0,0.00019809,2]
[407881101,1772879445714,-1000.0,0.00019846,2]
[407881102,1772879445723,-180.225,0.00019848,2]
[407881103,1772879445733,-2675.234,0.00019848,2]
[407881104,1772879445743,-1020.82498247,0.00019851,2]
[407881105,1772879445754,-421.0,0.00019863,2]
[407881106,1772879445764,-500.0,0.00019863,2]
[407881107,1772879445781,-500.0,0.00019863,2]
[407881108,1772879445798,-500.0,0.00019863,2]
[407881109,1772879445821,-889.0,0.00019863,2]
[407881110,1772879445831,-500.0,0.00019863,2]
[407881111,1772879445841,-500.0,0.00019863,2]
[407881112,1772879445851,-825.0,0.00019863,2]
[407881113,1772879445863,-15549.57989029,0.00019882,3]
[407881114,1772879445876,-9450.42010971,0.00019882,3]
[407881115,1772879445886,-25000.0,0.00019891,3]
[407881116,1772879445896,-708.16830237,0.000199,2]
[407881117,1772879445907,-1088.66773329,0.000199,2]
[407881118,1772879445917,-10454.97121763,0.000199,3]
[407881119,1772879445927,-25000.0,0.000199,3]
[407881120,1772879445938,-25000.0,0.000199,3]
[407881121,1772879445947,-892.7726375,0.000199,2]
[407881122,1772879445994,-565.38559205,0.000199,2]
[407881123,1772879605349,601.53,0.000114,2]
[407881125,1772880412876,-189.43848772,0.00012329,2]
[407881126,1772880631627,-21.90151228,0.00012329,2]
[407881127,1772880631636,-500.0,0.00013233,2]
[407881128,1772880631645,-524.0,0.00013333,2]
[407881129,1772880631655,-250.0,0.00013562,2]
[407881130,1772880631663,-250.0,0.00013562,2]
[407881131,1772880631672,-156.7,0.00016123,2]
[407881132,1772880631681,-200.0,0.000163,5]
[407881133,1772880631691,-156.7,0.00016393,2]
[407881134,1772880631699,-156.7,0.00016663,2]
[407881135,1772880631709,-166.83,0.00016712,2]
[407881137,1772880631718,-156.7,0.00016933,2]
[407881138,1772880631728,-156.7,0.00017203,2]
[407881139,1772880631737,-156.7,0.00017473,2]
[407881140,1772880631747,-156.7,0.00017743,2]
[407881141,1772880631756,-180.416132,0.00017922,2]
[407881142,1772880631766,-156.7,0.00018013,2]
[407881143,1772880631774,-524.0,0.00018095,6]
[407881144,1772880631785,-200.0,0.00018198,2]
[407881145,1772880631794,-164.35,0.00018207,2]
[407881146,1772880631806,-2000.0,0.00018239,2]
[407881147,1772880631815,-1200.0,0.0001827,2]
[407881148,1772880631826,-1506.46,0.00018271,2]
[407881149,1772880631838,-156.73,0.00018283,2]
[407881150,1772880631849,-153.157457,0.00018309,2]
[407881151,1772880631858,-150.0,0.00018319,2]
[407881152,1772880631869,-500.0,0.0001833,2]
[407881153,1772880631880,-2000.0,0.00018553,2]
[407881154,1772880631890,-150.0,0.00018553,2]
[407881155,1772880631902,-1506.46,0.00018728,2]
[407881156,1772880631911,-1852.42,0.0001883,2]
[407881157,1772880631920,-511.46,0.00018832,2]
[407881158,1772880631929,-9054.7077,0.00018899,2]
[407881159,1772880631938,-306.55,0.0001891,2]
[407881160,1772880631947,-664.43631119,0.00018917,2]
[407881161,1772880631956,-500.0,0.00018977,2]
[407881162,1772880631965,-578.20924308,0.00018977,2]
[407881163,1772880631979,-250.0,0.00018977,2]
[407881164,1772880631989,-693.3919763,0.00018977,2]
[407881165,1772880631998,-200.0,0.00018977,2]
[407881166,1772880632008,-267.72127624,0.00018977,2]
[407881167,1772880632019,-693.3919763,0.00018977,2]
[407881168,1772880632029,-500.0,0.00018977,2]
[407881169,1772880632037,-500.0,0.00018977,2]
[407881170,1772880632048,-500.0,0.00018977,2]
[407881171,1772880632057,-500.0,0.00018977,2]
[407881172,1772880632066,-500.0,0.00018977,2]
[407881173,1772880632076,-500.0,0.00018977,2]
[407881174,1772880632085,-500.0,0.00018977,2]
[407881175,1772880632094,-500.0,0.00018977,2]
[407881176,1772880632103,-500.0,0.00018977,2]
[407881177,1772880632112,-500.0,0.00018977,2]
[407881178,1772880632121,-500.0,0.00018977,2]
[407881179,1772880632130,-168.0,0.00018981,2]
[407881180,1772880632139,-719.04747942,0.00019032,2]
[407881181,1772880632148,-745.65223616,0.00019087,2]
[407881182,1772880632158,-1627.66038262,0.00019094,2]
[407881183,1772880632167,-200.0,0.000191,6]
[407881184,1772880632176,-773.2413689,0.00019142,2]
[407881185,1772880632187,-666.18,0.00019178,30]
[407881186,1772880632197,-1506.46,0.00019185,2]
[407881187,1772880632207,-801.85129955,0.00019197,2]
[407881188,1772880632216,-400.0,0.000192,7]
[407881189,1772880632226,-831.51979763,0.00019252,2]
[407881190,1772880632235,-271.27673044,0.00019266,2]
[407881191,1772880632244,-1000.0,0.00019298,2]
[407881192,1772880632255,-700.0,0.000193,7]
[407881193,1772880632269,-862.28603014,0.00019307,2]
[407881194,1772880632279,-894.19061326,0.00019362,2]
[407881195,1772880632289,-900.0,0.000194,7]
[407881196,1772880632300,-927.27566595,0.00019417,2]
[407881197,1772880632311,-748.49941287,0.00019417,2]
[407881198,1772880632321,-271.27673044,0.00019456,2]
[407881199,1772880632331,-961.58486559,0.00019472,2]
[407881200,1772880632340,-10000.01,0.00019492,2]
[407881201,1772880632351,-1100.0,0.000195,7]
[407881202,1772880632360,-347.78,0.00019502,3]
[407881203,1772880632372,-1026.98614302,0.00019502,2]
[407881204,1772880632381,-1012.27470418,0.00019502,2]
[407881205,1772880632391,-1056.72957649,0.00019502,2]
[407881206,1772880632400,-1194.93658622,0.00019502,2]
[407881207,1772880632412,-781.06,0.0001951,2]
[407881208,1772880632422,-719.04747942,0.00019525,2]
[407881209,1772880632431,-1000.0,0.00019526,2]
[407881210,1772880632442,-997.16350561,0.00019527,2]
[407881211,1772880632451,-1000.0,0.00019572,2]
[407881212,1772880632461,-160.0,0.00019597,2]
[407881213,1772880632471,-822.2835649,0.000196,2]
[407881214,1772880632481,-200.0,0.000196,7]
[407881215,1772880632491,-302.26,0.000196,14]
[407881216,1772880632501,-500.0,0.00019625,2]
[407881217,1772880632510,-1506.46,0.00019641,2]
[407881218,1772880632520,-271.27673044,0.00019647,2]
[407881219,1772880632529,-200.0,0.00019699,2]
[407881220,1772880632539,-150.0,0.00019699,2]
[407881221,1772880632548,-150.0,0.00019699,2]
[407881222,1772880632558,-500.0,0.00019699,2]
[407881223,1772880632568,-150.0,0.00019699,2]
[407881224,1772880632577,-846.0,0.00019699,2]
[407881225,1772880632587,-500.0,0.00019699,2]
[407881226,1772880632596,-150.0,0.00019699,2]
[407881227,1772880632606,-1405.0,0.00019699,2]
[407881228,1772880632616,-150.0,0.00019699,2]
[407881229,1772880632635,-2000.0,0.000197,2]
[407881230,1772880632644,-200.0,0.000197,7]
[407881231,1772880632654,-2500.0,0.00019751,2]
[407881232,1772880632663,-1085.22991884,0.00019751,2]
[407881233,1772880632672,-195.07058351,0.00019751,2]
[407881234,1772880632681,-150.0,0.00019754,2]
[407881235,1772880632691,-150.0,0.00019754,2]
[407881236,1772880632699,-500.0,0.00019754,2]
[407881237,1772880632709,-150.0,0.00019754,2]
[407881238,1772880632718,-846.0,0.00019754,2]
[407881239,1772880632728,-500.0,0.00019754,2]
[407881240,1772880632737,-1405.0,0.00019754,2]
[407881241,1772880632746,-208.49424201,0.00019758,2]
[407881242,1772880632755,-1085.22991877,0.00019768,2]
[407881243,1772880632764,-195.07058344,0.00019772,2]
[407881244,1772880632774,-511.46,0.00019774,2]
[407881245,1772880632783,-208.49424201,0.00019774,2]
[407881246,1772880632792,-781.06,0.00019784,2]
[407881247,1772880632801,-1085.22991877,0.00019784,2]
[407881248,1772880632810,-2003.53360402,0.00019788,2]
[407881249,1772880632819,-208.49424201,0.0001979,2]
[407881250,1772880632828,-195.07058344,0.00019794,2]
[407881251,1772880632837,-2000.0,0.000198,2]
[407881252,1772880632846,-200.0,0.000198,7]
[407881253,1772880632856,-1085.22991877,0.00019801,2]
[407881254,1772880632865,-208.49424201,0.00019805,2]
[407881255,1772880632874,-200.0,0.00019809,2]
[407881256,1772880632883,-150.0,0.00019809,2]
[407881257,1772880632892,-500.0,0.00019809,2]
[407881258,1772880632901,-200.0,0.00019809,2]
[407881259,1772880632911,-846.0,0.00019809,2]
[407881260,1772880632920,-500.0,0.00019809,2]
[407881261,1772880632929,-1405.0,0.00019809,2]
[407881262,1772880632939,-1085.22991877,0.00019817,2]
[407881263,1772880632948,-208.49424201,0.00019821,2]
[407881264,1772880632958,-1085.22991877,0.00019834,2]
[407881265,1772880632968,-208.49424201,0.00019837,2]
[407881266,1772880632982,-9175.27,0.00019841,2]
[407881267,1772880632991,-180.22659572,0.00019846,2]
[407881268,1772880633001,-2140.187,0.00019846,2]
[407881269,1772880633011,-1000.0,0.00019846,2]
[407881270,1772880633020,-445.04529331,0.0001985,2]
[407881271,1772880633029,-1085.22991877,0.0001985,2]
[407881272,1772880633039,-7871.77752068,0.00019851,2]
[407881273,1772880633053,-28864.74940377,0.00019851,2]
[407881274,1772880633064,-80536.49655441,0.00019851,2]
[407881275,1772880633075,-928.52777754,0.00019851,2]
[407881276,1772880633084,-110205.785771,0.00019851,2]
[407881277,1772880633093,-5543.8660316,0.00019851,2]
[407881278,1772880633103,-3551.75248983,0.00019851,2]
[407881279,1772880633114,-279.79428379,0.00019851,2]
[407881280,1772880633159,-2935.86868876,0.00019851,2]
[407881281,1772880637560,-1154.38291172,0.00019851,2]
[407881282,1772880637572,-387.75502244,0.00019851,2]
[407881283,1772880637613,-1064.40417485,0.00019851,2]
[407881284,1772880637668,-76052.52757561,0.00019851,2]
[407881285,1772880637678,-208.49424201,0.00019853,2]
[407881286,1772880637688,-150.0,0.00019863,2]
[407881287,1772880637697,-376.55476406,0.00019863,2]
[407881288,1772880637706,-846.0,0.00019863,2]
[407881289,1772880637716,-500.0,0.00019863,2]
[407881290,1772880637727,-1405.0,0.00019863,2]
[407881291,1772880637736,-1085.22991877,0.00019867,2]
[407881292,1772880637745,-208.49424201,0.00019868,2]
[407881293,1772880637755,-1085.22991877,0.00019883,2]
[407881294,1772880637765,-208.49424201,0.00019884,2]
[407881295,1772880637775,-4798.49957854,0.000199,3]
[407881296,1772880637785,-5000.0,0.000199,2]
[407881297,1772880637794,-286.37,0.000199,2]
[407881298,1772880637803,-1088.2166,0.000199,2]
[407881299,1772880637812,-2000.0,0.000199,2]
[407881300,1772880637821,-500.0,0.000199,2]
[407881301,1772880637830,-200.0,0.000199,7]
[407881302,1772880637840,-769.18382815,0.000199,3]
[407881303,1772880637850,-1085.22991877,0.000199,2]
[407881304,1772880637859,-2132.46388994,0.000199,2]
[407881305,1772880637868,-208.49424201,0.000199,2]
[407881306,1772880637877,-1000.0,0.000199,2]
[407881308,1772880637886,-1000.0,0.000199,2]
[407881310,1772880637895,-843.51432954,0.000199,2]
[407881312,1772880637904,-662.00214262,0.000199,2]
[407881314,1772880637913,-6185.87420303,0.000199,2]
[407881316,1772880637922,-236.0,0.00019918,2]
[407881318,1772880637931,-846.0,0.00019918,2]
[407881320,1772880637940,-500.0,0.00019918,2]
[407881322,1772880637950,-1405.0,0.00019918,2]
[407881324,1772880637959,-500.0,0.00019973,2]
[407881326,1772880637968,-846.0,0.00019973,2]
[407881328,1772880637982,-500.0,0.00019973,2]
[407881330,1772880637991,-1405.0,0.00019973,2]
[407881332,1772880638000,-150.0,0.00019973,2]
[407881334,1772880638010,-150.0,0.00019973,2]
[407881336,1772880638022,-1042.0,0.0001999,2]
[407881338,1772880638031,-619.0,0.0001999,2]
[407881340,1772880638041,-3563.506,0.0001999,2]
[407881342,1772880638050,-1341.0,0.0001999,2]
[407881344,1772880638059,-1279.0,0.0001999,2]
[407881346,1772880638068,-270.096,0.0001999,2]
[407881348,1772880638079,-922.0,0.0001999,2]
[407881350,1772880638088,-1223.841,0.0001999,2]
[407881352,1772880638097,-5991.0,0.0001999,2]
[407881354,1772880638106,-2460.0,0.0001999,2]
[407881355,1772880638115,-151.0,0.00019997,2]
[407881356,1772880638124,-151.0,0.00019997,2]
[407881357,1772880638133,-500.0,0.00019999,2]
[407881358,1772880638142,-158.7066107,0.00019999,2]
[407881359,1772880638152,-300.23960104,0.00019999,2]
[407881360,1772880638161,-632.77202331,0.00019999,2]
[407881361,1772880638170,-500.0,0.00019999,2]
[407881362,1772880638179,-179.07696056,0.00019999,2]
[407881363,1772880638188,-177.80762709,0.00019999,2]
[407881364,1772880638197,-432.15922613,0.00019999,2]
[407881365,1772880638206,-1218.0,0.00019999,2]
[407881366,1772880638216,-272.62018518,0.0002,2]
[407881367,1772880638227,-302.119699,0.0002,2]
[407881368,1772880638239,-452.26011582,0.0002,2]
[407881369,1772880638248,-819.0,0.0002,2]
[407881370,1772880638257,-159.0,0.0002,2]
[407881371,1772880638266,-86714.67100041,0.0002,2]
[407881374,1772880640022,-479.6862683,0.0002,2]
[407881375,1772880640230,-281.37242737,0.0002,2]
[407881391,1772880645689,-200.0,0.00019618,2]
[407881392,1772880645699,-500.0,0.00019699,2]
[407881393,1772880645711,-500.0,0.00019754,2]
[407881394,1772880645723,-500.0,0.00019809,2]
[407881395,1772880645732,-500.0,0.00019863,2]
[407881396,1772880645743,-500.0,0.00019918,2]
[407881397,1772880645755,-500.0,0.00019973,2]
[407881398,1772880645766,-414.0,0.0001999,2]
[407881399,1772880645777,-145524.41350685,0.0002,2]
[407881401,1772880905847,175.28,9.356e-05,2]
[407881405,1772881610200,-195.07709778,0.00013332,2]
[407881413,1772881831619,-972.66991975,0.00013265,2]
[407881415,1772881831674,-3130.09329125,0.00013265,2]
[407881416,1772881831686,-1200.0,0.00013331,2]
[407881417,1772881831698,-1200.0,0.00013332,2]
[407881418,1772881831711,-300.0,0.00013332,2]
[407881419,1772881831723,-2907.22136287,0.00013332,2]
[407881420,1772881831734,-250.0,0.00013332,2]
[407881421,1772881831746,-4005.23607467,0.00013332,2]
[407881422,1772881831759,-200.0,0.00013332,2]
[407881423,1772881831772,-500.0,0.00013333,2]
[407881424,1772881831784,-500.0,0.00013333,2]
[407881425,1772881831796,-500.0,0.00013333,2]
[407881426,1772881831807,-409.10622435,0.00013333,2]
[407881427,1772881831819,-524.0,0.00013333,2]
[407881428,1772881831831,-307.44905594,0.00013563,2]
[407881431,1772881831844,-1196.0,0.00014616,2]
[407881433,1772881831856,-150.0,0.00014664,2]
[407881435,1772881831867,-1680.0,0.00014664,2]
[407881437,1772881831879,-1274.31711269,0.00014665,2]
[407881440,1772881831891,-5000.0,0.00014665,2]
[407881442,1772881831903,-250.0,0.00014665,2]
[407881444,1772881831915,-500.0,0.00014665,2]
[407881446,1772881831926,-200.0,0.00015142,2]
[407881449,1772881831938,-271.27673042,0.00015912,2]
[407881451,1772881831950,-509.0,0.00016131,2]
[407881453,1772881831962,-5000.00013591,0.000162,5]
[407881455,1772881831973,-200.0,0.00016856,2]
[407881458,1772881831985,-8781.00719551,0.00017,2]
[407881460,1772881831999,-765.71985383,0.00017,2]
[407881463,1772881832014,-579.76289887,0.00017,2]
[407881465,1772881832028,-1915.61048288,0.00017,2]
[407881468,1772881832042,-4074.06,0.00017,2]
[407881470,1772881832056,-1581.17296328,0.00017,2]
[407881473,1772881832075,-729.51283028,0.00017,2]
[407881474,1772881832089,-856.65432573,0.00017,2]
[407881475,1772881832114,-708.50603005,0.00017,2]
[407881493,1772881837774,-577.21868921,0.00013653,2]
[407881494,1772881837827,-600.79131079,0.00013653,2]
[407881495,1772881837836,-4344.49320264,0.00017,2]
[407881496,1772881837848,-14460.61491275,0.00017,2]
[407881497,1772881837881,-634.59901641,0.00017,2]
[407881498,1772881837892,-902.48498136,0.00017,2]
[407881502,1772881839932,-10000.17669597,0.00017,2]
[407881503,1772881840246,-15797.41286911,0.00017,2]
[407881507,1772881842955,-10560.53160195,0.00017,2]
[407881510,1772881845921,-33556.37309835,0.00017,2]
[407881511,1772881845931,-193.077,0.00017503,2]
[407881512,1772881845943,-2124.702,0.00017503,2]
[407881513,1772881845953,-500.0,0.0001794,2]
[407881514,1772881845964,-1000.0,0.000182,2]
[407881515,1772881845975,-1000.0,0.000182,3]
[407881516,1772881845984,-505.41983925,0.00018373,2]
[407881517,1772881845994,-151.0,0.00018378,2]
[407881518,1772881846004,-100538.17872304,0.00018381,2]
[407881521,1772881935228,500.0,0.00011333,2]
[407881522,1772881935327,500.0,0.00011333,2]
[407881523,1772881935690,500.0,0.00011333,2]
[407881524,1772881935809,500.0,0.00011333,2]
[407881525,1772881935967,500.0,0.00011333,2]
[407881526,1772881936156,500.0,0.00011333,2]
[407881527,1772881936288,500.0,0.00011333,2]
[407881528,1772881936434,500.0,0.00011333,2]
[407881529,1772881936604,500.0,0.00011333,2]
[407881530,1772881936759,500.0,0.00011333,2]
[407881531,1772881936880,698.73765731,8e-05,2]
[407881532,1772881937890,500.0,0.00011333,2]
[407881533,1772881937927,500.0,8e-05,2]
[407881534,1772881937974,500.0,8e-05,2]
[407881535,1772881938006,500.0,8e-05,2]
[407881536,1772881938200,975.24401555,8e-05,2]
[407881537,1772881939463,500.0,0.00011333,2]
[407881538,1772881939706,211.25967557,0.00011333,2]
[407881539,1772881939967,500.0,0.00011333,2]
[407881540,1772881940915,500.0,8e-05,2]
[407881541,1772881941339,500.0,0.00011333,2]
[407881542,1772881941508,500.0,8e-05,2]
[407881543,1772881944017,500.0,0.00011333,2]
[407881544,1772881944046,500.0,0.00011333,2]
[407881545,1772881944162,500.0,0.00011333,2]
[407881546,1772881944478,500.0,0.00011333,2]
[407881547,1772881944641,500.0,0.00011333,2]
[407881548,1772881945086,500.0,0.00011333,2]
[407881549,1772881945160,500.0,8e-05,2]
[407881550,1772881945571,500.0,8e-05,2]
[407881551,1772881945651,500.0,8e-05,2]
[407881552,1772881945862,500.0,0.00011333,2]
[407881553,1772881946074,616.99604029,8e-05,2]
[407881554,1772881946222,702.17775379,0.00011333,2]
[407881555,1772881946315,500.0,0.00011333,2]
[407881556,1772881946365,785.45770305,8e-05,2]
[407881557,1772881946782,500.0,0.00011333,2]
[407881558,1772881946978,500.0,0.00011333,2]
[407881559,1772881947238,500.0,8e-05,2]
[407881560,1772881947438,500.0,8e-05,2]
[407881561,1772881947727,840.83695784,8e-05,2]
[407881562,1772881948608,500.0,8e-05,2]
[407881563,1772881948674,500.0,8e-05,2]
[407881564,1772881948859,500.0,8e-05,2]
[407881565,1772881949313,596.29210205,8e-05,2]
[407881566,1772881953005,500.0,0.00011333,2]
[407881567,1772882242250,500.0,0.00011333,2]
[407881568,1772882242758,500.0,0.00011333,2]
[407881569,1772882243202,500.0,0.00011333,2]
[407881570,1772882243661,500.0,0.00011333,2]
[407881571,1772882245145,500.0,8e-05,2]
[407881572,1772882246130,500.0,8e-05,2]
[407881573,1772882246819,500.0,8e-05,2]
[407881574,1772882247399,938.51687155,8e-05,2]
[407881575,1772882249467,500.0,0.00011333,2]
[407881576,1772882249935,500.0,0.00011333,2]
[407881577,1772882250427,500.0,0.00011333,2]
[407881578,1772882250932,500.0,8e-05,2]
[407881579,1772882251419,500.0,8e-05,2]
[407881582,1772882562526,500.0,0.00011333,2]
[407881583,1772882562822,526.41036631,0.00011333,2]
[407881584,1772882563029,500.0,0.00011333,2]
[407881585,1772882563581,500.0,8e-05,2]
[407881586,1772882564732,500.0,8e-05,2]
[407881587,1772882565368,471.80251208,0.00011333,2]
[407881588,1772882660076,485.07925419,0.000115,2]
[407881589,1772882813125,-164.69,0.00012605,2]
[407881590,1772882813148,-41.91366595,0.00013333,2]
[407881592,1772883031859,-458.08633405,0.00013333,2]
[407881593,1772883031871,-1497.56464619,0.00013424,2]
[407881594,1772883031881,-1168.38429121,0.00013516,2]
[407881595,1772883031890,-281.05847855,0.00013516,2]
[407881596,1772883031899,-528.11610231,0.00014,2]
[407881597,1772883031909,-200.0,0.00014269,2]
[407881598,1772883031918,-1200.0,0.00014664,2]
[407881599,1772883031927,-181.1759498,0.00014666,2]
[407881600,1772883031937,-250.0,0.00014666,2]
[407881601,1772883031945,-5000.0,0.00014666,2]
[407881602,1772883031955,-250.0,0.00014666,2]
[407881603,1772883031965,-281.05847853,0.00015187,2]
[407881604,1772883031974,-164.35,0.00015642,2]
[407881605,1772883031983,-301.29,0.00015807,2]
[407881606,1772883031992,-2000.0,0.0001589,2]
[407881607,1772883032005,-514.64,0.00016022,2]
[407881608,1772883032014,-480.0,0.00016054,2]
[407881609,1772883032023,-200.0,0.00016119,2]
[407881610,1772883032032,-301.29,0.00016202,2]
[407881611,1772883032042,-166.66,0.00016273,2]
[407881612,1772883032052,-300.0,0.00016336,2]
[407881613,1772883032062,-150.0,0.00016337,2]
[407881614,1772883032072,-812.91,0.00016337,2]
[407881615,1772883032082,-279.87,0.00016438,3]
[407881616,1772883032092,-172.57,0.00016438,3]
[407881617,1772883032102,-247.11,0.00016438,3]
[407881620,1772883032112,-151.0,0.00016533,2]
[407881623,1772883032124,-255.0,0.00016535,2]
[407881625,1772883032134,-88393.53781699,0.00016536,2]
[407881628,1772883032145,-7889.01723218,0.00016536,2]
[407881629,1772883032156,-4503.16991852,0.00016536,2]
[407881630,1772883032168,-911.72705474,0.00016536,2]
[407881631,1772883032179,-454.02947525,0.00016536,2]
[407881632,1772883032190,-706.49,0.00016536,2]
[407881633,1772883032204,-22987.73591053,0.00016536,2]
[407881695,1772883038782,-640.14698549,0.00016536,2]
[407881697,1772883038796,-1876.88644545,0.00016536,2]
[407881701,1772883038830,-335.96000004,0.00016536,2]
[407881703,1772883038843,-5753.47089063,0.00016536,2]
[407881705,1772883038866,-19468.68671659,0.00016536,2]
[407881760,1772883040080,-418.87999998,0.00016536,2]
[407881761,1772883040289,-90724.49631958,0.00016536,2]
[407881762,1772883040304,-42936.23240605,0.00016536,2]
[407881763,1772883040320,-1125.52258299,0.00016536,2]
[407881764,1772883040335,-1820.89468532,0.00016536,2]
[407881765,1772883040362,-3586.811,0.00016536,2]
[407881766,1772883041199,-2003.88937486,0.00016536,2]
[407881767,1772883041227,-1540.31369974,0.00016536,2]
[407881768,1772883041239,-412.0,0.00016536,2]
[407881769,1772883041253,-34447.96609049,0.00016536,2]
[407881770,1772883041264,-2943.95635846,0.00016536,2]
[407881771,1772883041279,-5239.89376426,0.00016536,2]
[407881793,1772883045813,-503.0,0.00016536,2]
[407881795,1772883045868,-5627.30158213,0.00016536,2]
[407881796,1772883045879,-78384.02302021,0.00016536,2]
[407881797,1772883045981,-1128.97587749,0.00016536,2]
[407881798,1772883046036,-2683.61476329,0.00016536,2]
[407881799,1772883046055,-11990.7355027,0.00016536,2]
[407881803,1772883689394,3110.90646753,0.0001,2]
[407881805,1772883702459,163.56,7.839e-05,2]
[407881806,1772883702653,163.56,9.145e-05,2]
[407881807,1772883702855,163.56,0.00010451,2]
[407881808,1772884016698,-163.56,0.00011758,2]
[407881809,1772884016719,-27.59604494,0.00012934,2]
[407881815,1772884231983,-163.56,0.00013064,2]